bitfinex-derivatives/quotes_SOLF0:USTF0_20241009
["timestamp","ask_amount","ask_price","bid_price","bid_amount"]
[1728438951086,3.453,144.88,144.87,10.61]
[1728438952091,3.4529,144.89,144.87,10.61]
[1728438952494,10.61,144.92,144.87,10.61]
[1728438953493,3.453,144.88,144.87,10.61]
[1728438953690,10.61,144.92,144.86,10.61]
[1728438953897,3.4532,144.88,144.86,10.61]
[1728438958493,3.4532,144.88,144.87,10.61]
[1728438959998,3.4532,144.88,144.85,3.4537]
[1728438960193,3.4532,144.88,144.86,10.61]
[1728438961594,10.61,144.91,144.84,1.3251]
[1728438961595,10.61,144.9,144.84,1.3251]
[1728438961794,10.61,144.88,144.84,1.3251]
[1728438962299,3.4535,144.86,144.84,1.3251]
[1728438962795,3.4535,144.86,144.83,15.54022]
[1728438963188,3.4538,144.85,144.83,1.47622]
[1728438963393,10.61,144.9,144.84,10.61]
[1728438963994,3.4533,144.87,144.84,14.0638]
[1728438964996,3.4532,144.88,144.85,14.0637]
[1728438967699,5.34,144.91,144.85,10.61]
[1728438967910,3.4534,144.87,144.84,14.0638]
[1728438968098,10.61,144.89,144.83,1.47622]
[1728438969099,3.4536,144.86,144.83,4.93032]
[1728438969603,10.61,144.89,144.83,12.08622]
[1728438969795,3.4536,144.86,144.83,12.08622]
[1728438971309,3.4536,144.86,144.83,15.54032]
[1728438973808,3.4537,144.86,144.83,12.08622]
[1728438974810,10.61,144.89,144.83,12.08622]
[1728438975010,3.4539,144.85,144.83,12.08622]
[1728438975408,10.61,144.89,144.84,10.61]
[1728438975409,3.453,144.89,144.84,10.61]
[1728438975716,3.453,144.89,144.86,10.61]
[1728438976116,3.4524,144.91,144.88,10.61]
[1728438976306,5.34,144.92,144.88,10.61]
[1728438976911,8.80749292,144.92,144.88,10.61]
[1728438977114,5.34,144.92,144.88,10.61]
[1728438977316,8.72633956,144.92,144.88,10.61]
[1728438977615,5.34,144.92,144.88,10.61]
[1728438978113,3.4527,144.9,144.88,10.61]
[1728438978314,10.61,144.94,144.88,10.61]
[1728438978509,3.4522,144.92,144.89,14.0626]
[1728438978711,10.73502,144.95,144.89,14.0626]
[1728438978914,3.4519,144.93,144.89,14.0626]
[1728438980322,3.4519,144.93,144.9,14.0624]
[1728438981823,3.4516,144.94,144.91,14.0622]
[1728438982010,3.4516,144.94,144.91,10.61]
[1728438983514,0.12502,144.95,144.93,10.61]
[1728438983717,0.12502,144.95,144.94,10.61]
[1728438984419,0.12502,144.95,144.94,14.0616]
[1728438984618,0.12502,144.95,144.94,10.61]
[1728438985517,0.12502,144.95,144.91,2.6326]
[1728438985722,0.12502,144.95,144.93,10.61]
[1728438987220,0.12502,144.95,144.93,14.0618]
[1728438987424,0.12502,144.95,144.93,3.4518]
[1728438987625,0.12502,144.95,144.94,10.61]
[1728438989429,0.12502,144.95,144.94,14.0616]
[1728438997431,3.4506,144.98,144.95,3.4512]
[1728438997627,3.4506,144.98,144.96,10.61]
[1728439002226,3.4504,144.99,144.96,14.0609]
[1728439002531,10.61,145.0,144.93,5.32]
[1728439002732,10.61,145.0,144.95,10.61]
[1728439003032,3.4507,144.98,144.95,14.0612]
[1728439005534,10.61,144.99,144.93,5.32]
[1728439005740,10.61,144.99,144.94,10.61]
[1728439006426,3.451,144.97,144.94,14.0614]
[1728439007928,3.451,144.97,144.94,10.61]
[1728439008124,3.451,144.97,144.95,3.4513]
[1728439008329,3.4505,144.99,144.96,10.61]
[1728439008734,3.4505,144.99,144.96,14.061]
[1728439009431,3.4506,144.98,144.96,10.61]
[1728439010039,10.73502,145.01,144.96,10.61]
[1728439010233,3.4508,144.97,144.96,10.61]
[1728439011334,3.4508,144.97,144.94,14.0614]
[1728439014643,3.4508,144.97,144.95,10.61]
[1728439015535,3.4508,144.97,144.95,14.0613]
[1728439015741,3.4507,144.98,144.95,14.0613]
[1728439017935,3.4507,144.98,144.95,10.61]
[1728439018242,5.44502,145.01,144.97,10.61]
[1728439019131,3.4504,144.99,144.97,10.61]
[1728439020038,3.4506,144.98,144.95,14.0612]
[1728439021540,5.44502,145.01,144.97,10.61]
[1728439021732,3.4502,145.0,144.97,14.0608]
[1728439023038,0.12502,145.01,144.98,10.61]
[1728439023242,0.12502,145.01,144.99,14.0603]
[1728439026243,0.12502,145.01,144.99,10.61]
[1728439027647,0.12502,145.01,145.0,3.4501]
[1728439028447,0.12502,145.01,144.99,10.61]
[1728439028654,0.12502,145.01,144.99,14.0603]
[1728439030153,0.12502,145.01,144.98,13.2959]
[1728439030360,0.12502,145.01,144.98,18.6159]
[1728439031654,3.57502,145.01,144.98,22.0663]
[1728439039259,3.57502,145.01,144.99,3.4504]
[1728439040556,0.12502,145.01,144.98,6.7043]
[1728439041155,3.4503,145.0,144.98,6.7043]
[1728439041359,3.4503,145.0,144.98,17.3143]
[1728439042462,3.4501,145.0,144.98,17.3143]
[1728439042662,3.4501,145.0,144.98,6.7043]
[1728439045665,3.4501,145.0,144.98,17.3143]
[1728439045859,0.12502,145.01,144.98,10.61]
[1728439046163,3.4507,144.98,144.95,3.4512]
[1728439046469,3.4507,144.98,144.96,10.61]
[1728439046861,3.4507,144.98,144.97,10.61]
[1728439047269,3.4507,144.98,144.96,3.4511]
[1728439047463,3.4502,145.0,144.97,10.61]
[1728439048056,3.4502,145.0,144.97,14.0607]
[1728439049371,3.4505,144.99,144.97,10.61]
[1728439052072,14.25012242,145.01,144.96,10.61]
[1728439052876,3.4508,144.98,144.96,10.61]
[1728439055678,14.25012242,145.01,144.95,3.4512]
[1728439055876,3.451,144.97,144.95,10.61]
[1728439056481,3.4514,144.95,144.93,5.3]
[1728439057375,3.4514,144.95,144.93,8.7518]
[1728439058080,3.4514,144.95,144.94,10.61]
[1728439059175,3.4514,144.95,144.92,20.6766]
[1728439062269,3.451,144.97,144.94,14.0614]
[1728439062476,15.91,145.0,144.94,10.61]
[1728439062880,3.4509,144.97,144.94,14.0615]
[1728439064282,15.91,145.0,144.94,10.61]
[1728439064488,3.4507,144.98,144.95,14.0612]
[1728439065191,10.61,144.98,144.9,74.5]
[1728439065388,3.4517,144.94,144.92,10.61]
[1728439066287,3.4512,144.96,144.93,3.4517]
[1728439066584,3.4512,144.96,144.93,14.0617]
[1728439067589,3.4515,144.95,144.92,3.452]
[1728439067887,3.4515,144.95,144.92,14.062]
[1728439074886,10.61,144.97,144.9,9.3868]
[1728439075090,3.4518,144.93,144.91,10.61]
[1728439075480,3.4518,144.93,144.9,11.4746]
[1728439076775,3.4517,144.94,144.91,14.0622]
[1728439077985,10.61,144.95,144.91,10.61]
[1728439078186,3.4518,144.93,144.91,10.61]
[1728439079486,6.6163,145.0,144.91,14.0622]
[1728439079687,10.61,144.97,144.91,14.0622]
[1728439080392,3.4515,144.95,144.91,14.0622]
[1728439080576,3.4515,144.95,144.92,14.0618]
[1728439083093,10.61,144.98,144.92,14.0618]
[1728439083281,3.4516,144.94,144.92,3.4518]
[1728439083484,3.4516,144.94,144.91,10.61]
[1728439083686,3.4516,144.94,144.91,14.0622]
[1728439084587,10.61,144.95,144.9,2.7223]
[1728439085589,10.61,144.95,144.9,1.3091]
[1728439086402,3.4522,144.92,144.9,1.3091]
[1728439086794,10.61,144.95,144.9,1.3091]
[1728439086991,10.61,144.93,144.89,0.12502]
[1728439087297,14.14268693,144.93,144.89,0.12502]
[1728439088304,3.4524,144.91,144.89,0.12502]
[1728439089398,3.4525,144.9,144.89,0.12502]
[1728439094203,3.4521,144.92,144.89,0.12502]
[1728439094795,3.4517,144.94,144.89,0.12502]
[1728439095003,15.91,144.95,144.89,0.12502]
[1728439095206,15.91,144.95,144.9,10.61]
[1728439095405,3.452,144.93,144.9,10.61]
[1728439095608,15.91,144.95,144.9,10.61]
[1728439096501,3.4521,144.92,144.9,10.61]
[1728439096694,3.4521,144.92,144.89,3.57772]
[1728439097098,3.4521,144.92,144.9,10.61]
[1728439097895,3.4521,144.92,144.89,0.12502]
[1728439098296,3.4521,144.92,144.89,10.73502]
[1728439098501,3.4521,144.92,144.89,14.18752]
[1728439099509,3.4521,144.92,144.89,3.57752]
[1728439102309,3.4521,144.92,144.89,14.18752]
[1728439103112,15.91,144.95,144.89,10.73502]
[1728439103413,3.4519,144.93,144.9,3.4525]
[1728439105406,3.452,144.93,144.89,14.18762]
[1728439106511,3.452,144.93,144.9,3.4524]
[1728439107911,10.61,144.95,144.9,3.4524]
[1728439108117,3.452,144.92,144.9,3.4524]
[1728439108412,3.452,144.92,144.89,14.18762]
[1728439108611,10.61,144.95,144.89,10.73502]
[1728439108818,10.61,144.95,144.89,0.12502]
[1728439109006,10.61,144.95,144.89,10.73502]
[1728439109417,3.4519,144.93,144.89,10.73502]
[1728439109919,3.4519,144.93,144.9,3.4524]
[1728439111614,10.61,144.96,144.9,10.61]
[1728439111923,3.4514,144.95,144.92,3.452]
[1728439112323,10.61,144.96,144.92,14.062]
[1728439112517,3.4515,144.95,144.92,10.61]
[1728439112715,10.61,144.96,144.92,10.61]
[1728439113316,3.4514,144.95,144.92,10.61]
[1728439113716,10.61,144.98,144.94,3.4514]
[1728439113916,3.4507,144.98,144.93,11.9594]
[1728439114421,3.4507,144.98,144.95,3.4513]
[1728439114622,3.4507,144.98,144.93,11.9594]
[1728439114623,10.61,145.0,144.93,11.9594]
[1728439114821,3.4509,144.97,144.94,3.4514]
[1728439115020,10.61,144.98,144.93,11.9594]
[1728439115421,10.61,144.97,144.93,1.3494]
[1728439115617,10.61,144.96,144.93,1.3494]
[1728439116031,3.4516,144.94,144.93,1.3494]
[1728439116324,10.61,144.96,144.92,1.3264]
[1728439116823,3.4516,144.94,144.92,1.3264]
[1728439117226,3.4515,144.95,144.92,1.3264]
[1728439118228,10.61,144.94,144.89,0.12502]
[1728439118425,10.61,144.93,144.89,0.12502]
[1728439119123,3.4522,144.92,144.89,3.57772]
[1728439119617,3.4522,144.92,144.89,0.12502]
[1728439120223,3.4522,144.92,144.89,3.57772]
[1728439125038,3.4522,144.92,144.89,0.12502]
[1728439126039,3.4522,144.92,144.89,3.57762]
[1728439126232,3.4522,144.92,144.89,14.18762]
[1728439128438,3.4523,144.91,144.89,0.12502]
[1728439128827,10.61,144.91,144.89,0.12502]
[1728439129043,3.4525,144.9,144.89,0.12502]
[1728439129446,14.0625,144.9,144.89,0.12502]
[1728439129640,14.0625,144.9,144.83,5.42502]
[1728439129641,10.61,144.9,144.83,5.42502]
[1728439129835,3.4534,144.87,144.83,5.42502]
[1728439130037,3.4534,144.87,144.83,8.87892]
[1728439130531,3.4534,144.87,144.83,5.42502]
[1728439130738,3.4534,144.87,144.84,3.4539]
[1728439131945,10.61,144.88,144.83,5.42502]
[1728439132136,3.4535,144.86,144.83,8.87902]
[1728439132546,10.61,144.88,144.83,8.87902]
[1728439132547,10.61,144.88,144.83,5.42502]
[1728439132841,3.4533,144.87,144.84,3.4539]
[1728439133044,5.3,144.92,144.83,16.03502]
[1728439133245,5.3,144.92,144.85,10.61]
[1728439133548,10.61,144.91,144.85,10.61]
[1728439133754,3.4529,144.89,144.86,3.4534]
[1728439134043,10.61,144.91,144.85,10.61]
[1728439134533,3.453,144.88,144.85,14.0636]
[1728439137850,10.61,144.88,144.83,5.42502]
[1728439138236,3.4536,144.86,144.83,8.87902]
[1728439138840,10.61,144.88,144.84,3.4539]
[1728439139045,3.4533,144.87,144.84,3.4539]
[1728439141151,10.61,144.88,144.83,0.12502]
[1728439141346,10.61,144.88,144.84,3.4539]
[1728439142047,3.4534,144.87,144.84,3.4539]
[1728439146161,10.61,144.88,144.83,10.73502]
[1728439146353,10.61,144.91,144.85,10.61]
[1728439146649,15.91,144.92,144.87,10.61]
[1728439146844,3.4526,144.9,144.87,3.4531]
[1728439147445,3.4529,144.89,144.86,3.4534]
[1728439150356,3.4529,144.89,144.87,3.4532]
[1728439150552,10.61,144.91,144.85,10.61]
[1728439150756,14.0624,144.91,144.86,10.61]
[1728439150952,14.0624,144.91,144.88,3.453]
[1728439151264,3.4531,144.88,144.85,10.61]
[1728439151457,10.61,144.91,144.86,8.7534]
[1728439151656,10.61,144.91,144.86,15.91]
[1728439151857,3.4527,144.9,144.86,15.91]
[1728439152253,3.4527,144.9,144.87,3.4531]
[1728439155860,14.0623,144.91,144.88,3.4529]
[1728439156954,3.4525,144.9,144.87,3.4531]
[1728439158859,3.4531,144.88,144.86,5.3]
[1728439163368,3.4528,144.89,144.86,8.7533]
[1728439170063,10.61,144.91,144.86,5.3]
[1728439171167,10.61,144.87,144.77,3.58062]
[1728439171372,10.61,144.82,144.77,0.12502]
[1728439171561,3.4552,144.79,144.77,0.12502]
[1728439171966,10.61,144.8,144.77,0.12502]
[1728439172172,3.4554,144.78,144.77,0.12502]
[1728439175066,3.4552,144.79,144.77,0.12502]
[1728439175261,15.89,144.82,144.77,10.73502]
[1728439175467,10.61,144.83,144.77,10.73502]
[1728439175763,3.4548,144.81,144.77,14.19042]
[1728439176769,3.455,144.8,144.77,10.73502]
[1728439176971,5.28,144.82,144.77,10.73502]
[1728439177866,3.4547,144.81,144.77,14.19042]
[1728439178071,10.61,144.83,144.78,10.61]
[1728439178273,15.89,144.83,144.78,10.61]
[1728439178477,3.4546,144.82,144.78,14.0652]
[1728439178770,3.4546,144.82,144.78,16.7928]
[1728439179479,3.4547,144.81,144.78,16.7928]
[1728439181575,3.4545,144.82,144.78,16.7928]
[1728439182570,10.61,144.83,144.78,16.7928]
[1728439182768,3.4547,144.81,144.78,16.7928]
[1728439183471,3.4547,144.81,144.78,6.1828]
[1728439184575,10.61,144.83,144.78,6.1828]
[1728439184776,3.4546,144.82,144.78,2.7276]
[1728439184979,3.4546,144.82,144.79,3.455]
[1728439185177,3.4547,144.81,144.78,2.7276]
[1728439185374,10.61,144.8,144.78,2.7276]
[1728439185881,3.4551,144.79,144.78,2.7276]
[1728439186475,0.12502,144.89,144.78,13.3376]
[1728439186784,10.61,144.86,144.8,10.61]
[1728439187082,3.4544,144.82,144.8,5.28]
[1728439187270,10.61,144.83,144.8,5.28]
[1728439187670,3.4545,144.82,144.8,5.28]
[1728439191783,10.61,144.84,144.8,5.28]
[1728439191980,3.4543,144.83,144.8,5.28]
[1728439192184,10.61,144.84,144.8,5.28]
[1728439192486,3.4543,144.83,144.8,5.28]
[1728439193490,3.4543,144.83,144.79,14.0651]
[1728439194582,3.4543,144.83,144.8,3.4548]
[1728439195993,3.4541,144.84,144.8,14.0647]
[1728439196193,3.4541,144.84,144.8,10.61]
[1728439196795,3.4541,144.84,144.81,3.4545]
[1728439198988,15.89,144.87,144.8,10.61]
[1728439199192,3.4538,144.85,144.82,14.0644]
[1728439200884,3.4534,144.87,144.83,14.064]
[1728439201091,10.61,144.88,144.82,10.61]
[1728439201299,14.01534747,144.88,144.82,10.61]
[1728439201491,3.4538,144.85,144.82,14.0644]
[1728439201800,14.01534747,144.88,144.82,10.61]
[1728439202296,3.454,144.84,144.81,3.4545]
[1728439203007,3.454,144.84,144.8,14.0648]
[1728439203503,3.454,144.84,144.8,10.61]
[1728439204394,3.454,144.84,144.81,3.4545]
[1728439205300,10.61,144.86,144.81,3.4545]
[1728439205500,3.40534747,144.88,144.78,9.4395]
[1728439205501,5.40502,144.89,144.84,10.61]
[1728439205703,8.94023974,144.89,144.84,10.61]
[1728439206003,5.40502,144.89,144.84,10.61]
[1728439206198,3.57782,144.89,144.85,3.4535]
[1728439206405,0.12502,144.89,144.85,3.4535]
[1728439206603,0.12502,144.89,144.84,10.61]
[1728439206804,3.4533,144.87,144.84,14.0639]
[1728439207805,3.4531,144.88,144.85,3.4535]
[1728439208003,0.12502,144.89,144.85,10.61]
[1728439209405,3.453,144.88,144.85,14.0636]
[1728439209707,0.12502,144.89,144.83,3.9585]
[1728439209911,3.4533,144.87,144.84,3.4539]
[1728439210509,10.61,144.88,144.83,3.9585]
[1728439210712,10.61,144.86,144.83,1.3381]
[1728439211914,15.89,144.88,144.83,1.3381]
[1728439212906,3.4538,144.85,144.83,1.3381]
[1728439213712,3.4539,144.84,144.83,1.3381]
[1728439214118,10.61,144.86,144.81,5.28]
[1728439214321,10.61,144.85,144.79,11.9474]
[1728439214524,10.61,144.82,144.79,1.3374]
[1728439214822,3.4548,144.81,144.79,1.3374]
[1728439215205,10.61,144.82,144.79,1.3374]
[1728439215613,10.61,144.82,144.77,14.19052]
[1728439215818,10.61,144.82,144.77,10.73502]
[1728439216028,10.61,144.81,144.77,0.12502]
[1728439216225,10.61,144.8,144.77,0.12502]
[1728439216426,3.4554,144.78,144.77,0.12502]
[1728439216717,10.61,144.81,144.77,0.12502]
[1728439216912,3.4548,144.81,144.77,10.73502]
[1728439217410,10.61,144.83,144.79,3.4551]
[1728439217609,10.61,144.83,144.78,10.61]
[1728439217610,3.4544,144.82,144.78,10.61]
[1728439217821,10.61,144.83,144.78,10.61]
[1728439218023,3.4548,144.81,144.78,14.0652]
[1728439218418,10.61,144.83,144.78,14.0652]
[1728439218619,3.4545,144.82,144.78,14.0652]
[1728439219428,1.2978,144.87,144.79,10.61]
[1728439219624,5.28,144.86,144.81,10.61]
[1728439219814,15.89,144.86,144.81,10.61]
[1728439220018,3.4542,144.83,144.81,10.61]
[1728439222626,10.61,144.83,144.79,5.28]
[1728439222830,3.4545,144.82,144.8,10.61]
[1728439223321,10.61,144.85,144.8,10.61]
[1728439224030,3.4543,144.83,144.8,10.61]
[1728439224930,10.61,144.85,144.8,10.61]
[1728439225124,3.4548,144.81,144.79,5.28]
[1728439227635,3.455,144.8,144.78,1.408]
[1728439227940,10.61,144.81,144.78,1.408]
[1728439228736,3.4549,144.8,144.78,1.408]
[1728439229029,10.61,144.81,144.78,1.408]
[1728439229237,3.4132875,144.83,144.77,0.12502]
[1728439229238,10.61,144.8,144.77,0.12502]
[1728439229628,10.61,144.79,144.77,0.12502]
[1728439229833,3.4554,144.78,144.77,0.12502]
[1728439237147,3.4552,144.79,144.77,0.12502]
[1728439237535,14.06659933,144.8,144.77,0.12502]
[1728439238038,3.4551,144.79,144.77,0.12502]
[1728439238552,10.61,144.81,144.77,0.12502]
[1728439238847,5.28,144.83,144.78,10.61]
[1728439239038,3.46505025,144.83,144.78,14.0653]
[1728439239440,3.4547,144.81,144.78,14.0653]
[1728439241245,15.89,144.84,144.78,10.61]
[1728439241435,3.4545,144.82,144.79,3.4551]
[1728439242249,3.4543,144.83,144.79,14.0651]
[1728439242441,5.28,144.84,144.79,10.61]
[1728439242840,5.28,144.84,144.8,10.61]
[1728439243442,340.28,144.87,144.82,10.61]
[1728439243747,350.89,144.87,144.82,10.61]
[1728439243943,3.4538,144.85,144.82,10.61]
[1728439244845,3.4536,144.86,144.82,14.0642]
[1728439245044,3.4536,144.86,144.82,10.61]
[1728439245346,3.4538,144.85,144.82,3.4543]
[1728439245549,10.61,144.86,144.81,10.61]
[1728439245845,3.454,144.84,144.81,14.0645]
[1728439248334,3.38541859,144.83,144.78,2.7974]
[1728439248545,10.61,144.84,144.78,2.7974]
[1728439248546,10.61,144.82,144.78,2.7974]
[1728439248940,10.61,144.82,144.78,6.2526]
[1728439248941,14.0645,144.82,144.78,6.2526]
[1728439249141,10.61,144.82,144.78,6.2526]
[1728439250550,3.4547,144.81,144.78,16.8626]
[1728439253061,3.4543,144.83,144.79,14.0649]
[1728439253354,10.61,144.85,144.79,14.0649]
[1728439254257,3.4546,144.82,144.79,10.61]
[1728439254851,3.4546,144.82,144.78,13.4074]
[1728439255156,3.4546,144.82,144.79,3.4551]
[1728439255351,3.4546,144.82,144.78,13.4074]
[1728439255556,3.4546,144.82,144.78,16.8627]
[1728439257363,14.05116026,144.83,144.78,16.8627]
[1728439257569,3.4547,144.81,144.78,16.8627]
[1728439257961,3.4549,144.8,144.78,13.4074]
[1728439258166,3.4549,144.8,144.78,1.4096]
[1728439265970,14.05116026,144.83,144.78,1.4096]
[1728439266165,3.4548,144.81,144.78,4.8649]
[1728439266867,3.4548,144.81,144.77,10.73502]
[1728439266868,10.61,144.8,144.77,0.12502]
[1728439267074,10.61,144.79,144.77,0.12502]
[1728439267462,3.4554,144.78,144.77,0.12502]
[1728439268381,3.4554,144.78,144.65,0.12502]
[1728439268382,15.89,144.78,144.65,0.12502]
[1728439268670,10.61,144.73,144.66,2.6827]
[1728439268873,3.4568,144.72,144.67,14.0678]
[1728439269061,3.4568,144.72,144.67,10.61]
[1728439269869,3.4568,144.72,144.68,3.4576]
[1728439271268,14.0668,144.72,144.65,3.58342]
[1728439271464,3.4573,144.7,144.65,3.58342]
[1728439271664,14.0673,144.7,144.65,3.58342]
[1728439273570,3.4575,144.69,144.65,3.58342]
[1728439274660,10.61,144.68,144.65,3.58342]
[1728439275968,3.4582,144.66,144.65,0.12502]
[1728439276468,10.61,144.67,144.65,0.12502]
[1728439277260,3.4582,144.66,144.65,0.12502]
[1728439283870,8.7382,144.66,144.65,0.12502]
[1728439296275,3.4582,144.66,144.65,0.12502]
[1728439296581,19.3482,144.66,144.65,0.12502]
[1728439297778,19.3481,144.67,144.65,0.12502]
[1728439297986,10.61,144.66,144.65,0.12502]
[1728439299393,14.0682,144.66,144.65,0.12502]
[1728439301092,19.3482,144.66,144.65,0.12502]
[1728439302177,5.28,144.66,144.65,0.12502]
[1728439302382,14.0682,144.67,144.65,0.12502]
[1728439302779,3.4582,144.66,144.65,0.12502]
[1728439303389,14.0682,144.66,144.65,0.12502]
[1728439307393,5.28,144.68,144.65,0.12502]
[1728439307597,10.61,144.67,144.65,0.12502]
[1728439308186,14.0681,144.67,144.65,0.12502]
[1728439308488,10.61,144.66,144.65,0.12502]
[1728439309298,14.0682,144.66,144.65,0.12502]
[1728439314790,10.61,144.66,144.65,0.12502]
[1728439316003,14.0682,144.66,144.65,0.12502]
[1728439316204,69.12850117,144.71,144.65,0.12502]
[1728439316496,14.0674,144.7,144.67,3.4578]
[1728439317288,83.19560117,144.71,144.68,3.4577]
[1728439317485,83.19560117,144.71,144.66,2.759]
[1728439317894,83.19560117,144.71,144.67,3.4579]
[1728439318098,83.19560117,144.71,144.66,2.759]
[1728439318686,83.19560117,144.71,144.68,3.4577]
[1728439319287,69.12850117,144.71,144.66,22.13099626]
[1728439319901,69.12850117,144.71,144.69,3.4575]
[1728439320791,83.19570117,144.71,144.68,3.4577]
[1728439320996,79.73850117,144.71,144.66,11.52099626]
[1728439321294,83.19560117,144.71,144.68,3.4578]
[1728439322799,83.19560117,144.71,144.7,3.4573]
[1728439322800,69.12850117,144.71,144.7,3.4573]
[1728439323004,14.0667,144.73,144.7,3.4573]
[1728439323216,10.61,144.73,144.68,10.61]
[1728439324403,14.0666,144.73,144.7,3.4572]
[1728439324603,15.87,144.74,144.69,10.61]
[1728439324801,15.99502,144.77,144.71,10.61]
[1728439325004,15.99502,144.77,144.72,1.3271]
[1728439325206,3.456,144.76,144.72,1.3271]
[1728439325407,14.066,144.76,144.72,1.3271]
[1728439325607,14.066,144.76,144.73,3.4565]
[1728439325997,10.61,144.76,144.72,1.3271]
[1728439326193,3.4564,144.74,144.72,1.3271]
[1728439327803,10.61,144.76,144.72,4.7838]
[1728439327995,15.99502,144.77,144.72,1.3271]
[1728439328802,10.61,144.76,144.72,1.3271]
[1728439329307,3.4565,144.74,144.72,1.3271]
[1728439334711,3.4565,144.74,144.71,6.2737]
[1728439334712,14.0665,144.74,144.71,4.8399]
[1728439335010,14.0665,144.74,144.71,3.4569]
[1728439335213,10.61,144.74,144.7,5.26]
[1728439335413,3.457,144.72,144.69,3.4574]
[1728439335617,10.61,144.71,144.67,4.1175]
[1728439335814,10.61,144.7,144.67,1.2992]
[1728439336506,3.4577,144.69,144.67,1.2992]
[1728439336713,10.61,144.69,144.65,0.12502]
[1728439338519,3.4579,144.68,144.65,3.58332]
[1728439340716,3.4579,144.68,144.65,0.12502]
[1728439341516,3.4581,144.67,144.65,0.12502]
[1728439341718,10.61,144.67,144.65,0.12502]
[1728439341921,10.61,144.66,144.65,0.12502]
[1728439342111,14.0682,144.66,144.65,0.12502]
[1728439346622,3.4594,144.62,144.59,0.12502]
[1728439346829,10.61,144.63,144.59,0.12502]
[1728439347017,10.61,144.63,144.59,3.58472]
[1728439347819,3.459,144.63,144.6,3.4597]
[1728439348128,5.26,144.64,144.59,10.73502]
[1728439349430,3.4593,144.62,144.59,14.19482]
[1728439350530,5.26,144.64,144.59,10.73502]
[1728439350731,5.26,144.64,144.6,10.61]
[1728439351437,5.26,144.64,144.61,3.4592]
[1728439351920,14.0683,144.66,144.63,3.4589]
[1728439352120,14.04664731,144.68,144.63,10.61]
[1728439352323,14.04664731,144.68,144.6,8.1047]
[1728439352324,15.87,144.68,144.6,8.1047]
[1728439352531,15.87,144.68,144.62,14.069]
[1728439352532,3.4584,144.66,144.62,14.069]
[1728439353128,3.4584,144.66,144.63,3.4589]
[1728439355433,3.4584,144.66,144.62,14.069]
[1728439356225,19.36351856,144.68,144.62,10.61]
[1728439356434,10.61,144.65,144.61,1.3784]
[1728439357121,3.4588,144.64,144.61,1.3784]
[1728439359229,3.4591,144.63,144.6,3.4596]
[1728439360522,3.4589,144.64,144.61,14.0694]
[1728439363729,3.4581,144.67,144.62,10.61]
[1728439363930,10.61,144.68,144.62,10.61]
[1728439364233,10.61,144.67,144.62,10.61]
[1728439364433,3.4586,144.65,144.62,14.0691]